[Event "January 9 Late 2024"]
[Site "https://www.chess.com"]
[Date "2024.01.09"]
[Round "8"]
[White "Dilmukhametov, Artur"]
[Black "Mekhitarian, Krikor Sevag"]
[Result "0-1"]
[Board "51"]
[TimeControl "180+1"]
[WhiteFideId "24179922"]
[BlackFideId "2107660"]
[WhiteElo "2338"]
[BlackElo "2746"]
[WhiteTeam "RUS"]
[BlackTeam "BRA"]
[WhiteClock "0:00:00"]
[BlackClock "0:00:02"]

1. e4 {[%clk 0:03:00]}  e6 {[%clk 0:02:59]} 2. d4 {[%clk 0:03:01]}  d5 {[%clk 0:02:59]} 3. Nd2 {[%clk 0:03:01]}  c5 {[%clk 0:02:58]} 4. exd5 {[%clk 0:03:01]}  Qxd5 {[%clk 0:02:59]} 5. Ngf3 {[%clk 0:03:02]}  cxd4 {[%clk 0:02:59]} 6. Bc4 {[%clk 0:03:02]}  Qd7 {[%clk 0:03:00]} 7. O-O {[%clk 0:03:03]}  Nc6 {[%clk 0:03:01]} 8. Nb3 {[%clk 0:03:04]}  a6 {[%clk 0:03:01]} 9. Nbxd4 {[%clk 0:03:04]}  Nxd4 {[%clk 0:03:02]} 10. Nxd4 {[%clk 0:03:05]}  Qc7 {[%clk 0:03:02]} 11. Bb3 {[%clk 0:03:03]}  Bd6 {[%clk 0:03:02]} 12. h3 {[%clk 0:03:03]}  Ne7 {[%clk 0:03:02]} 13. c3 {[%clk 0:02:56]}  O-O {[%clk 0:03:01]} 14. Qf3 {[%clk 0:02:51]}  e5 {[%clk 0:02:55]} 15. Nc2 {[%clk 0:02:38]}  Kh8 {[%clk 0:02:30]} 16. Bg5 {[%clk 0:02:17]}  f6 {[%clk 0:02:23]} 17. Bh4 {[%clk 0:02:17]}  Nf5 {[%clk 0:02:20]} 18. Bg3 {[%clk 0:02:15]}  Nxg3 {[%clk 0:02:07]} 19. Qxg3 {[%clk 0:02:04]}  e4 {[%clk 0:01:35]} 20. Qh4 {[%clk 0:02:04]}  f5 {[%clk 0:01:36]} 21. Nd4 {[%clk 0:02:04]}  Bd7 {[%clk 0:01:27]} 22. Rfe1 {[%clk 0:01:47]}  Rae8 {[%clk 0:01:26]} 23. Rad1 {[%clk 0:01:47]}  Bh2+ {[%clk 0:01:20]} 24. Kh1 {[%clk 0:01:46]}  Be5 {[%clk 0:01:20]} 25. Rd2 {[%clk 0:01:20]}  Rf6 {[%clk 0:01:10]} 26. Qh5 {[%clk 0:01:09]}  g6 {[%clk 0:01:00]} 27. Qh4 {[%clk 0:01:08]}  Kg7 {[%clk 0:00:49]} 28. Red1 {[%clk 0:00:51]}  Bc8 {[%clk 0:00:49]} 29. Ne2 {[%clk 0:00:44]}  Ref8 {[%clk 0:00:39]} 30. Rd5 {[%clk 0:00:28]}  Be6 {[%clk 0:00:29]} 31. R5d2 {[%clk 0:00:26]}  Bc8 {[%clk 0:00:26]} 32. Bd5 {[%clk 0:00:22]}  b5 {[%clk 0:00:19]} 33. a4 {[%clk 0:00:21]}  bxa4 {[%clk 0:00:19]} 34. Nd4 {[%clk 0:00:19]}  Rd8 {[%clk 0:00:16]} 35. Ba2 {[%clk 0:00:18]}  Rfd6 {[%clk 0:00:14]} 36. Kg1 {[%clk 0:00:13]}  Bf6 {[%clk 0:00:12]} 37. Qf4 {[%clk 0:00:11]}  Kh8 {[%clk 0:00:06]} 38. Nxf5 {[%clk 0:00:06]}  Rxd2 {[%clk 0:00:03]} 39. Qxc7 {[%clk 0:00:04]}  Rxd1+ {[%clk 0:00:03]} 40. Kh2 {[%clk 0:00:05]}  Bxf5 {[%clk 0:00:03]} 41. g4 {[%clk 0:00:02]}  Bc8 {[%clk 0:00:01]} 42. Kg2 {[%clk 0:00:00]}  Bg7 {[%clk 0:00:02]} 0-1

[Event "January 9 Late 2024"]
[Site "https://www.chess.com"]
[Date "2024.01.10"]
[Round "8"]
[White "Sargsyan, Shant"]
[Black "Otero Marino, Alain"]
[Result "1/2-1/2"]
[Board "52"]
[TimeControl "180+1"]
[WhiteFideId "13306766"]
[BlackFideId "3524876"]
[WhiteElo "2880"]
[BlackElo "2558"]
[WhiteTeam "ARM"]
[BlackTeam "CUB"]
[WhiteClock "0:00:02"]
[BlackClock "0:00:21"]

1. b4 {[%clk 0:03:00]}  e6 {[%clk 0:02:55]} 2. Bb2 {[%clk 0:03:01]}  d5 {[%clk 0:02:55]} 3. Nf3 {[%clk 0:03:00]}  Nf6 {[%clk 0:02:55]} 4. a3 {[%clk 0:03:00]}  Be7 {[%clk 0:02:55]} 5. e3 {[%clk 0:03:01]}  O-O {[%clk 0:02:55]} 6. g4 {[%clk 0:03:01]}  c5 {[%clk 0:02:49]} 7. g5 {[%clk 0:03:02]}  Ne8 {[%clk 0:02:50]} 8. bxc5 {[%clk 0:03:01]}  Bxc5 {[%clk 0:02:49]} 9. h4 {[%clk 0:03:01]}  Be7 {[%clk 0:02:47]} 10. h5 {[%clk 0:03:01]}  f6 {[%clk 0:02:47]} 11. h6 {[%clk 0:02:54]}  g6 {[%clk 0:02:47]} 12. gxf6 {[%clk 0:02:51]}  Bxf6 {[%clk 0:02:47]} 13. Nc3 {[%clk 0:02:44]}  Nc6 {[%clk 0:02:47]} 14. Bh3 {[%clk 0:02:26]}  e5 {[%clk 0:02:41]} 15. e4 {[%clk 0:02:14]}  d4 {[%clk 0:02:38]} 16. Nd5 {[%clk 0:02:14]}  Bxh3 {[%clk 0:02:36]} 17. Rxh3 {[%clk 0:02:14]}  Nc7 {[%clk 0:02:36]} 18. Nxc7 {[%clk 0:02:11]}  Qxc7 {[%clk 0:02:36]} 19. Qe2 {[%clk 0:02:12]}  Qf7 {[%clk 0:02:33]} 20. O-O-O {[%clk 0:01:54]}  Na5 {[%clk 0:02:30]} 21. Ne1 {[%clk 0:01:51]}  Nc4 {[%clk 0:02:24]} 22. Rb3 {[%clk 0:01:51]}  Nxb2 {[%clk 0:02:24]} 23. Kxb2 {[%clk 0:01:50]}  b6 {[%clk 0:02:23]} 24. Nd3 {[%clk 0:01:50]}  Rac8 {[%clk 0:02:21]} 25. Rc1 {[%clk 0:01:47]}  Qc7 {[%clk 0:02:14]} 26. c4 {[%clk 0:01:45]}  dxc3+ {[%clk 0:02:09]} 27. Rbxc3 {[%clk 0:01:45]}  Qd7 {[%clk 0:02:10]} 28. Nb4 {[%clk 0:01:45]}  Rxc3 {[%clk 0:02:09]} 29. Rxc3 {[%clk 0:01:46]}  Bg5 {[%clk 0:01:52]} 30. Nd5 {[%clk 0:01:46]}  Rc8 {[%clk 0:01:44]} 31. Qd3 {[%clk 0:01:41]}  Kf7 {[%clk 0:01:38]} 32. Qf3+ {[%clk 0:01:38]}  Kg8 {[%clk 0:01:36]} 33. Qg3 {[%clk 0:01:15]}  Rxc3 {[%clk 0:01:26]} 34. Qxc3 {[%clk 0:01:09]}  Kf7 {[%clk 0:01:07]} 35. Qxe5 {[%clk 0:01:08]}  Bxh6 {[%clk 0:01:06]} 36. Kc1 {[%clk 0:00:53]}  Bg7 {[%clk 0:01:03]} 37. Qf4+ {[%clk 0:00:53]}  Kg8 {[%clk 0:00:58]} 38. Qb8+ {[%clk 0:00:53]}  Kf7 {[%clk 0:00:58]} 39. Qf4+ {[%clk 0:00:53]}  Kg8 {[%clk 0:00:59]} 40. Kd1 {[%clk 0:00:53]}  h5 {[%clk 0:00:57]} 41. Ke2 {[%clk 0:00:52]}  Qb5+ {[%clk 0:00:54]} 42. d3 {[%clk 0:00:48]}  Qb2+ {[%clk 0:00:53]} 43. Kf3 {[%clk 0:00:48]}  Qxa3 {[%clk 0:00:53]} 44. Qe3 {[%clk 0:00:35]}  Qd6 {[%clk 0:00:48]} 45. Kg2 {[%clk 0:00:30]}  Qe6 {[%clk 0:00:45]} 46. Kf1 {[%clk 0:00:24]}  Kh7 {[%clk 0:00:44]} 47. Qg3 {[%clk 0:00:22]}  a5 {[%clk 0:00:33]} 48. Qc7 {[%clk 0:00:20]}  a4 {[%clk 0:00:32]} 49. Qa7 {[%clk 0:00:20]}  b5 {[%clk 0:00:31]} 50. f4 {[%clk 0:00:17]}  h4 {[%clk 0:00:27]} 51. Kf2 {[%clk 0:00:15]}  Kh6 {[%clk 0:00:24]} 52. Qe3 {[%clk 0:00:14]}  Qg4 {[%clk 0:00:22]} 53. f5+ {[%clk 0:00:15]}  g5 {[%clk 0:00:22]} 54. f6 {[%clk 0:00:14]}  Qg3+ {[%clk 0:00:18]} 55. Qxg3 {[%clk 0:00:14]}  hxg3+ {[%clk 0:00:19]} 56. Kxg3 {[%clk 0:00:15]}  Bxf6 {[%clk 0:00:19]} 57. Nxf6 {[%clk 0:00:12]}  a3 {[%clk 0:00:19]} 58. Ng4+ {[%clk 0:00:12]}  Kg7 {[%clk 0:00:19]} 59. Ne3 {[%clk 0:00:13]}  b4 {[%clk 0:00:20]} 60. Nc2 {[%clk 0:00:13]}  a2 {[%clk 0:00:19]} 61. Na1 {[%clk 0:00:13]}  Kf6 {[%clk 0:00:19]} 62. d4 {[%clk 0:00:13]}  Ke6 {[%clk 0:00:18]} 63. Kg4 {[%clk 0:00:13]}  Kd6 {[%clk 0:00:18]} 64. Kxg5 {[%clk 0:00:14]}  Kc6 {[%clk 0:00:18]} 65. e5 {[%clk 0:00:11]}  Kd5 {[%clk 0:00:18]} 66. Kf6 {[%clk 0:00:11]}  Kxd4 {[%clk 0:00:18]} 67. e6 {[%clk 0:00:11]}  Kc3 {[%clk 0:00:19]} 68. e7 {[%clk 0:00:12]}  Kb2 {[%clk 0:00:19]} 69. e8=Q {[%clk 0:00:12]}  Kxa1 {[%clk 0:00:19]} 70. Qe1+ {[%clk 0:00:11]}  Kb2 {[%clk 0:00:19]} 71. Qd2+ {[%clk 0:00:12]}  Kb1 {[%clk 0:00:19]} 72. Qd3+ {[%clk 0:00:13]}  Kb2 {[%clk 0:00:19]} 73. Qd4+ {[%clk 0:00:13]}  Kb1 {[%clk 0:00:19]} 74. Qe4+ {[%clk 0:00:13]}  Kb2 {[%clk 0:00:19]} 75. Qe2+ {[%clk 0:00:12]}  Kb1 {[%clk 0:00:19]} 76. Qe1+ {[%clk 0:00:12]}  Kb2 {[%clk 0:00:20]} 77. Qf2+ {[%clk 0:00:13]}  Kb1 {[%clk 0:00:20]} 78. Qf5+ {[%clk 0:00:12]}  Kb2 {[%clk 0:00:20]} 79. Qe5+ {[%clk 0:00:12]}  Kb1 {[%clk 0:00:20]} 80. Qe4+ {[%clk 0:00:12]}  Kb2 {[%clk 0:00:21]} 81. Qd4+ {[%clk 0:00:09]}  Kb1 {[%clk 0:00:21]} 82. Qxb4+ {[%clk 0:00:07]}  Ka1 {[%clk 0:00:21]} 83. Qe1+ {[%clk 0:00:02]}  Kb2 {[%clk 0:00:21]} 84. Qd2+ {[%clk 0:00:02]}  Kb1 {[%clk 0:00:21]} 85. Qxa2+ {[%clk 0:00:02]}  Kxa2 {[%clk 0:00:21]} 1/2-1/2

[Event "January 9 Late 2024"]
[Site "https://www.chess.com"]
[Date "2024.01.10"]
[Round "8"]
[White "Yurasov, Matfey"]
[Black "Stopa, Jacek"]
[Result "1-0"]
[Board "54"]
[TimeControl "180+1"]
[WhiteFideId "55617603"]
[BlackFideId "1119591"]
[WhiteElo "2562"]
[BlackElo "2778"]
[WhiteTeam "FID"]
[BlackTeam "POL"]
[WhiteClock "0:00:05"]
[BlackClock "0:00:00"]

1. e4 {[%clk 0:03:00]}  e5 {[%clk 0:02:56]} 2. Nf3 {[%clk 0:03:00]}  Nc6 {[%clk 0:02:56]} 3. Bc4 {[%clk 0:03:00]}  Bc5 {[%clk 0:02:55]} 4. O-O {[%clk 0:02:59]}  Nf6 {[%clk 0:02:55]} 5. d3 {[%clk 0:02:58]}  O-O {[%clk 0:02:55]} 6. h3 {[%clk 0:02:57]}  d6 {[%clk 0:02:55]} 7. c3 {[%clk 0:02:57]}  a6 {[%clk 0:02:53]} 8. a4 {[%clk 0:02:55]}  h6 {[%clk 0:02:51]} 9. Nbd2 {[%clk 0:02:54]}  Ba7 {[%clk 0:02:51]} 10. Re1 {[%clk 0:02:53]}  Be6 {[%clk 0:02:51]} 11. Qe2 {[%clk 0:02:48]}  Ne7 {[%clk 0:02:50]} 12. Nf1 {[%clk 0:02:30]}  Bxc4 {[%clk 0:02:49]} 13. dxc4 {[%clk 0:02:30]}  Ng6 {[%clk 0:02:47]} 14. Ng3 {[%clk 0:02:23]}  a5 {[%clk 0:02:41]} 15. Nf5 {[%clk 0:02:18]}  Ne7 {[%clk 0:02:40]} 16. N3h4 {[%clk 0:02:13]}  Ng6 {[%clk 0:02:35]} 17. Qf3 {[%clk 0:02:09]}  Kh7 {[%clk 0:02:31]} 18. Bd2 {[%clk 0:02:00]}  Ng8 {[%clk 0:02:30]} 19. Qh5 {[%clk 0:01:55]}  Nf4 {[%clk 0:02:17]} 20. Bxf4 {[%clk 0:01:43]}  exf4 {[%clk 0:02:17]} 21. Qg4 {[%clk 0:01:35]}  Qg5 {[%clk 0:02:14]} 22. Qxg5 {[%clk 0:01:28]}  hxg5 {[%clk 0:02:14]} 23. Nf3 {[%clk 0:01:28]}  f6 {[%clk 0:02:12]} 24. N5d4 {[%clk 0:01:27]}  Rfe8 {[%clk 0:02:05]} 25. Rad1 {[%clk 0:01:25]}  g6 {[%clk 0:01:56]} 26. Nb5 {[%clk 0:01:21]}  Bb6 {[%clk 0:01:57]} 27. Nd2 {[%clk 0:01:10]}  Nh6 {[%clk 0:01:53]} 28. Kf1 {[%clk 0:01:03]}  Re7 {[%clk 0:01:52]} 29. Re2 {[%clk 0:00:56]}  g4 {[%clk 0:01:52]} 30. hxg4 {[%clk 0:00:55]}  Nxg4 {[%clk 0:01:52]} 31. Nd4 {[%clk 0:00:38]}  Kg7 {[%clk 0:01:46]} 32. g3 {[%clk 0:00:28]}  Rh8 {[%clk 0:01:44]} 33. Kg1 {[%clk 0:00:25]}  fxg3 {[%clk 0:01:40]} 34. fxg3 {[%clk 0:00:26]}  Re5 {[%clk 0:01:34]} 35. Nf3 {[%clk 0:00:21]}  Reh5 {[%clk 0:01:34]} 36. Kg2 {[%clk 0:00:20]}  Rh2+ {[%clk 0:01:12]} 37. Nxh2 {[%clk 0:00:20]}  Rxh2+ {[%clk 0:01:13]} 38. Kf3 {[%clk 0:00:17]}  Ne5+ {[%clk 0:01:13]} 39. Ke3 {[%clk 0:00:17]}  Nxc4+ {[%clk 0:01:14]} 40. Kf4 {[%clk 0:00:12]}  Rh5 {[%clk 0:01:02]} 41. b3 {[%clk 0:00:10]}  Ne5 {[%clk 0:01:03]} 42. Ke3 {[%clk 0:00:09]}  Ng4+ {[%clk 0:01:03]} 43. Kf3 {[%clk 0:00:09]}  Ne5+ {[%clk 0:01:03]} 44. Kg2 {[%clk 0:00:08]}  Rg5 {[%clk 0:01:03]} 45. Ne6+ {[%clk 0:00:08]}  Kh6 {[%clk 0:01:03]} 46. Nxg5 {[%clk 0:00:07]}  Kxg5 {[%clk 0:01:04]} 47. Rh1 {[%clk 0:00:07]}  Bc5 {[%clk 0:01:04]} 48. Rh7 {[%clk 0:00:07]}  Bb6 {[%clk 0:01:04]} 49. Re7 {[%clk 0:00:07]}  Nc6 {[%clk 0:01:04]} 50. Rf7 {[%clk 0:00:06]}  Ne5 {[%clk 0:01:04]} 51. Rf8 {[%clk 0:00:06]}  Ng4 {[%clk 0:01:05]} 52. Re8 {[%clk 0:00:04]}  Nh6 {[%clk 0:01:05]} 53. Kf3 {[%clk 0:00:03]}  Nf7 {[%clk 0:01:05]} 54. Re7 {[%clk 0:00:03]}  Ne5+ {[%clk 0:01:05]} 55. Kg2 {[%clk 0:00:02]}  Nc6 {[%clk 0:01:06]} 56. Re6 {[%clk 0:00:02]}  f5 {[%clk 0:01:07]} 57. exf5 {[%clk 0:00:01]}  Kxf5 {[%clk 0:01:07]} 58. Re8 {[%clk 0:00:02]}  Ne5 {[%clk 0:01:08]} 59. Rf8+ {[%clk 0:00:03]}  Ke6 {[%clk 0:01:08]} 60. Rxe5+ {[%clk 0:00:03]}  dxe5 {[%clk 0:01:07]} 61. Kf3 {[%clk 0:00:04]}  Bc5 {[%clk 0:01:06]} 62. Re8+ {[%clk 0:00:03]}  Kf6 {[%clk 0:01:06]} 63. Ke4 {[%clk 0:00:03]}  Bd6 {[%clk 0:01:07]} 64. Rb8 {[%clk 0:00:03]}  b6 {[%clk 0:01:07]} 65. Rh8 {[%clk 0:00:03]}  Kg5 {[%clk 0:01:06]} 66. Rg8 {[%clk 0:00:04]}  Kf6 {[%clk 0:01:05]} 67. g4 {[%clk 0:00:04]}  Kg5 {[%clk 0:01:05]} 68. c4 {[%clk 0:00:04]}  Kh6 {[%clk 0:01:02]} 69. Kd5 {[%clk 0:00:04]}  Kg5 {[%clk 0:01:03]} 70. Ke6 {[%clk 0:00:03]}  Kxg4 {[%clk 0:01:03]} 71. Rxg6+ {[%clk 0:00:03]}  Kf4 {[%clk 0:01:04]} 72. Kd5 {[%clk 0:00:03]}  e4 {[%clk 0:01:02]} 73. Rf6+ {[%clk 0:00:03]}  Kg5 {[%clk 0:01:03]} 74. Re6 {[%clk 0:00:03]}  Kf5 {[%clk 0:01:03]} 75. Rxe4 {[%clk 0:00:03]}  c6+ {[%clk 0:01:03]} 76. Kd4 {[%clk 0:00:02]}  Bc5+ {[%clk 0:01:00]} 77. Kd3 {[%clk 0:00:03]}  Kf6 {[%clk 0:01:01]} 78. Re8 {[%clk 0:00:03]}  Be7 {[%clk 0:00:58]} 79. Rc8 {[%clk 0:00:03]}  c5 {[%clk 0:00:59]} 80. Rc6+ {[%clk 0:00:03]}  Ke5 {[%clk 0:00:59]} 81. Rxb6 {[%clk 0:00:04]}  Bd6 {[%clk 0:01:00]} 82. Rb5 {[%clk 0:00:04]}  Bc7 {[%clk 0:01:01]} 83. Rxc5+ {[%clk 0:00:05]}  Kd6 {[%clk 0:00:00]} 84. Rxc7 {[%clk 0:00:05]} 1-0

[Event "January 9 Late 2024"]
[Site "https://www.chess.com"]
[Date "2024.01.09"]
[Round "8"]
[White "Serban, Cristian-Stefan"]
[Black "Kosteniuk, Alexandra"]
[Result "1-0"]
[Board "57"]
[TimeControl "180+1"]
[WhiteFideId "1241443"]
[BlackFideId "4128125"]
[WhiteElo "2551"]
[BlackElo "2723"]
[WhiteTeam "ROU"]
[BlackTeam "SUI"]
[WhiteClock "0:00:04"]
[BlackClock "0:00:00"]

1. d4 {[%clk 0:03:00]}  f5 {[%clk 0:02:59]} 2. c4 {[%clk 0:02:59]}  Nf6 {[%clk 0:03:00]} 3. g3 {[%clk 0:02:59]}  g6 {[%clk 0:03:00]} 4. Bg2 {[%clk 0:02:59]}  Bg7 {[%clk 0:03:01]} 5. Nc3 {[%clk 0:02:59]}  O-O {[%clk 0:03:01]} 6. Nh3 {[%clk 0:03:00]}  Nc6 {[%clk 0:03:00]} 7. O-O {[%clk 0:02:47]}  d6 {[%clk 0:02:53]} 8. d5 {[%clk 0:02:46]}  Ne5 {[%clk 0:02:53]} 9. b3 {[%clk 0:02:46]}  Ne4 {[%clk 0:02:42]} 10. Nxe4 {[%clk 0:01:57]}  fxe4 {[%clk 0:02:29]} 11. Rb1 {[%clk 0:01:57]}  Bf5 {[%clk 0:02:16]} 12. Be3 {[%clk 0:01:45]}  Qd7 {[%clk 0:02:08]} 13. Ng5 {[%clk 0:01:41]}  Ng4 {[%clk 0:01:46]} 14. Bxe4 {[%clk 0:01:18]}  Nxe3 {[%clk 0:01:44]} 15. fxe3 {[%clk 0:01:19]}  Bh6 {[%clk 0:01:41]} 16. Bxf5 {[%clk 0:01:18]}  Rxf5 {[%clk 0:01:41]} 17. Ne6 {[%clk 0:01:18]}  Bxe3+ {[%clk 0:01:36]} 18. Kg2 {[%clk 0:01:19]}  Re5 {[%clk 0:01:27]} 19. Rf3 {[%clk 0:01:17]}  c6 {[%clk 0:01:23]} 20. Qf1 {[%clk 0:01:10]}  Bh6 {[%clk 0:01:15]} 21. Rd1 {[%clk 0:00:55]}  cxd5 {[%clk 0:01:16]} 22. cxd5 {[%clk 0:00:56]}  Rc8 {[%clk 0:01:14]} 23. Rd4 {[%clk 0:00:47]}  Rxe6 {[%clk 0:01:07]} 24. dxe6 {[%clk 0:00:45]}  Qxe6 {[%clk 0:01:07]} 25. Rc4 {[%clk 0:00:14]}  Rxc4 {[%clk 0:01:06]} 26. bxc4 {[%clk 0:00:15]}  Qxc4 {[%clk 0:01:06]} 27. Rb3 {[%clk 0:00:15]}  Qc6+ {[%clk 0:00:52]} 28. Qf3 {[%clk 0:00:15]}  d5 {[%clk 0:00:36]} 29. Rc3 {[%clk 0:00:15]}  Qd7 {[%clk 0:00:35]} 30. Rd3 {[%clk 0:00:15]}  e6 {[%clk 0:00:35]} 31. e4 {[%clk 0:00:09]}  d4 {[%clk 0:00:35]} 32. e5 {[%clk 0:00:10]}  Bf8 {[%clk 0:00:30]} 33. Qf4 {[%clk 0:00:03]}  Bc5 {[%clk 0:00:29]} 34. h4 {[%clk 0:00:03]}  Qd5+ {[%clk 0:00:26]} 35. Rf3 {[%clk 0:00:02]}  Qd7 {[%clk 0:00:25]} 36. h5 {[%clk 0:00:02]}  d3 {[%clk 0:00:23]} 37. hxg6 {[%clk 0:00:02]}  hxg6 {[%clk 0:00:21]} 38. Qf6 {[%clk 0:00:02]}  d2 {[%clk 0:00:06]} 39. Qxg6+ {[%clk 0:00:01]}  Kh8 {[%clk 0:00:07]} 40. Qh6+ {[%clk 0:00:01]}  Kg8 {[%clk 0:00:07]} 41. Qg6+ {[%clk 0:00:01]}  Kh8 {[%clk 0:00:08]} 42. Rf4 {[%clk 0:00:01]}  Qd5+ {[%clk 0:00:04]} 43. Kh2 {[%clk 0:00:01]}  Qh1+ {[%clk 0:00:04]} 44. Kxh1 {[%clk 0:00:02]}  d1=Q+ {[%clk 0:00:05]} 45. Kh2 {[%clk 0:00:03]}  Qe2+ {[%clk 0:00:03]} 46. Kh3 {[%clk 0:00:03]}  Qxe5 {[%clk 0:00:00]} 47. Rh4+ {[%clk 0:00:04]} 1-0

[Event "January 9 Late 2024"]
[Site "https://www.chess.com"]
[Date "2024.01.09"]
[Round "8"]
[White "Akobian, Varuzhan"]
[Black "Ferreira, Vitor Hugo Vieira"]
[Result "1-0"]
[Board "58"]
[TimeControl "180+1"]
[WhiteFideId "13300580"]
[BlackFideId "2119765"]
[WhiteElo "2712"]
[BlackElo "2548"]
[WhiteTeam "USA"]
[BlackTeam "BRA"]
[WhiteClock "0:02:08"]
[BlackClock "0:00:43"]

1. d4 {[%clk 0:03:00]}  d5 {[%clk 0:02:57]} 2. c4 {[%clk 0:02:59]}  c6 {[%clk 0:02:57]} 3. cxd5 {[%clk 0:02:55]}  cxd5 {[%clk 0:02:56]} 4. Nf3 {[%clk 0:02:55]}  Nc6 {[%clk 0:02:56]} 5. Nc3 {[%clk 0:02:54]}  Bf5 {[%clk 0:02:56]} 6. Bf4 {[%clk 0:02:52]}  e6 {[%clk 0:02:55]} 7. e3 {[%clk 0:02:50]}  Bb4 {[%clk 0:02:53]} 8. Qb3 {[%clk 0:02:46]}  Qa5 {[%clk 0:02:52]} 9. Be2 {[%clk 0:02:45]}  Nge7 {[%clk 0:02:49]} 10. O-O {[%clk 0:02:45]}  Ng6 {[%clk 0:02:47]} 11. Bg3 {[%clk 0:02:44]}  O-O {[%clk 0:02:39]} 12. Rfc1 {[%clk 0:02:43]}  Rfc8 {[%clk 0:02:37]} 13. a3 {[%clk 0:02:42]}  Bxc3 {[%clk 0:02:35]} 14. Rxc3 {[%clk 0:02:42]}  Qb6 {[%clk 0:01:53]} 15. Qxb6 {[%clk 0:02:40]}  axb6 {[%clk 0:01:53]} 16. Rb3 {[%clk 0:02:40]}  Na5 {[%clk 0:01:46]} 17. Rxb6 {[%clk 0:02:40]}  Rc2 {[%clk 0:01:46]} 18. Bd1 {[%clk 0:02:38]}  Rc4 {[%clk 0:01:39]} 19. Nd2 {[%clk 0:02:36]}  Rc6 {[%clk 0:01:35]} 20. Rxc6 {[%clk 0:02:36]}  bxc6 {[%clk 0:01:35]} 21. Rc1 {[%clk 0:02:32]}  Bd3 {[%clk 0:01:33]} 22. b3 {[%clk 0:02:23]}  f6 {[%clk 0:01:29]} 23. Rc3 {[%clk 0:02:22]}  Ba6 {[%clk 0:01:26]} 24. Bc7 {[%clk 0:02:21]}  Bb7 {[%clk 0:01:17]} 25. Rc5 {[%clk 0:02:13]}  Nxb3 {[%clk 0:01:08]} 26. Nxb3 {[%clk 0:02:11]}  Rxa3 {[%clk 0:00:43]} 27. Ra5 {[%clk 0:02:08]} 1-0

[Event "January 9 Late 2024"]
[Site "https://www.chess.com"]
[Date "2024.01.09"]
[Round "8"]
[White "Martinez Ramirez, Lennis"]
[Black "Kopczynski, Michal"]
[Result "1-0"]
[Board "61"]
[TimeControl "180+1"]
[WhiteFideId "3509079"]
[BlackFideId "1124200"]
[WhiteElo "2689"]
[BlackElo "2537"]
[WhiteTeam "CUB"]
[BlackTeam "POL"]
[WhiteClock "0:00:48"]
[BlackClock "0:00:45"]

1. Nf3 {[%clk 0:02:27]}  d6 {[%clk 0:02:58]} 2. g3 {[%clk 0:02:26]}  e5 {[%clk 0:02:58]} 3. Bg2 {[%clk 0:02:27]}  f5 {[%clk 0:02:58]} 4. O-O {[%clk 0:02:27]}  g6 {[%clk 0:02:59]} 5. d4 {[%clk 0:02:26]}  e4 {[%clk 0:02:58]} 6. Ne1 {[%clk 0:02:26]}  Bg7 {[%clk 0:02:59]} 7. c4 {[%clk 0:02:24]}  Ne7 {[%clk 0:02:59]} 8. Nc3 {[%clk 0:02:24]}  O-O {[%clk 0:02:59]} 9. f3 {[%clk 0:02:24]}  exf3 {[%clk 0:02:57]} 10. Nxf3 {[%clk 0:02:24]}  Nbc6 {[%clk 0:02:56]} 11. e3 {[%clk 0:02:22]}  h6 {[%clk 0:02:54]} 12. b3 {[%clk 0:02:22]}  g5 {[%clk 0:02:54]} 13. Qd3 {[%clk 0:02:17]}  f4 {[%clk 0:02:26]} 14. gxf4 {[%clk 0:02:10]}  gxf4 {[%clk 0:02:27]} 15. e4 {[%clk 0:02:05]}  Bg4 {[%clk 0:02:27]} 16. Ne2 {[%clk 0:02:03]}  Ng6 {[%clk 0:02:24]} 17. Kh1 {[%clk 0:02:01]}  Qd7 {[%clk 0:02:06]} 18. Bd2 {[%clk 0:01:59]}  Rae8 {[%clk 0:02:04]} 19. Rae1 {[%clk 0:01:57]}  Bh3 {[%clk 0:02:00]} 20. Rg1 {[%clk 0:01:54]}  Nce7 {[%clk 0:01:50]} 21. Nc3 {[%clk 0:01:47]}  Kh8 {[%clk 0:01:38]} 22. Qf1 {[%clk 0:01:44]}  Bxg2+ {[%clk 0:01:35]} 23. Qxg2 {[%clk 0:01:45]}  Rg8 {[%clk 0:01:34]} 24. Qg4 {[%clk 0:01:45]}  Qxg4 {[%clk 0:01:28]} 25. Rxg4 {[%clk 0:01:46]}  h5 {[%clk 0:01:26]} 26. Rg5 {[%clk 0:01:45]}  Bf6 {[%clk 0:01:15]} 27. Rxh5+ {[%clk 0:01:45]}  Kg7 {[%clk 0:01:15]} 28. Rg1 {[%clk 0:01:44]}  Kf7 {[%clk 0:01:14]} 29. e5 {[%clk 0:01:39]}  dxe5 {[%clk 0:01:11]} 30. dxe5 {[%clk 0:01:39]}  Bh8 {[%clk 0:01:02]} 31. Ne4 {[%clk 0:00:53]}  Ke6 {[%clk 0:00:53]} 32. Nc5+ {[%clk 0:00:51]}  Kf7 {[%clk 0:00:49]} 33. Ng5+ {[%clk 0:00:51]}  Kf8 {[%clk 0:00:46]} 34. Nd7+ {[%clk 0:00:48]}  Kg7 {[%clk 0:00:45]} 35. Rh7# {[%clk 0:00:48]} 1-0